[Event "Late-Titled-Tuesday-Blitz-April-23-2024"]
[Site "Chess.com"]
[Date "2024.04.23"]
[Round "1"]
[White "ansko1999"]
[Black "KebabJangles"]
[Result "1-0"]
[WhiteElo "2603"]
[BlackElo "2219"]
[TimeControl "180+1"]
[EndTime "14:07:49 PDT"]
[Termination "ansko1999 won by checkmate"]

1. c4 {[%clk 0:03:00.1]} 1... Nf6 {[%clk 0:02:56.2]} 2. Nc3 {[%clk 0:03:00]}
2... g6 {[%clk 0:02:41]} 3. d4 {[%clk 0:02:57.8]} 3... Bg7 {[%clk 0:02:40.6]} 4.
Bg5 {[%clk 0:02:57.4]} 4... d6 {[%clk 0:02:40.5]} 5. e3 {[%clk 0:02:56.1]} 5...
O-O {[%clk 0:02:38.4]} 6. Be2 {[%clk 0:02:55.7]} 6... Bh6 {[%clk 0:02:34.7]} 7.
Bxh6 {[%clk 0:02:54.7]} 7... Re8 {[%clk 0:02:34.1]} 8. Bg5 {[%clk 0:02:51.6]}
8... Nbd7 {[%clk 0:02:33.2]} 9. Bxf6 {[%clk 0:02:49.9]} 9... exf6 {[%clk
0:02:33]} 10. Nf3 {[%clk 0:02:49.7]} 10... f5 {[%clk 0:02:33.3]} 11. O-O {[%clk
0:02:49.4]} 11... Nf6 {[%clk 0:02:33.4]} 12. Rc1 {[%clk 0:02:47.9]} 12... c6
{[%clk 0:02:33.5]} 13. b4 {[%clk 0:02:46.6]} 13... a5 {[%clk 0:02:32.2]} 14. b5
{[%clk 0:02:46.3]} 14... c5 {[%clk 0:02:32]} 15. dxc5 {[%clk 0:02:46.4]} 15...
dxc5 {[%clk 0:02:32.9]} 16. Qxd8 {[%clk 0:02:46.5]} 16... Rxd8 {[%clk
0:02:33.1]} 17. Rfd1 {[%clk 0:02:47.2]} 17... Be6 {[%clk 0:02:32.6]} 18. Ng5
{[%clk 0:02:42.9]} 18... b6 {[%clk 0:02:30.3]} 19. Nxe6 {[%clk 0:02:42.6]} 19...
fxe6 {[%clk 0:02:31.2]} 20. Bf3 {[%clk 0:02:42.6]} 20... Rab8 {[%clk 0:02:23.6]}
21. Na4 {[%clk 0:02:41.1]} 21... Nd7 {[%clk 0:02:18.6]} 22. Rd6 {[%clk
0:02:35.9]} 22... Kf7 {[%clk 0:02:17]} 23. Rcd1 {[%clk 0:02:34.5]} 23... Ke7
{[%clk 0:02:10.8]} 24. Bc6 {[%clk 0:02:32.9]} 24... Ne5 {[%clk 0:02:00.1]} 25.
Rxd8 {[%clk 0:02:29.2]} 25... Rxd8 {[%clk 0:02:01]} 26. Rxd8 {[%clk 0:02:29.3]}
26... Kxd8 {[%clk 0:02:01.9]} 27. Nxb6 {[%clk 0:02:22.2]} 27... Kc7 {[%clk
0:02:00.5]} 28. Na4 {[%clk 0:02:22.1]} 28... Nxc4 {[%clk 0:01:59.4]} 29. Nxc5
{[%clk 0:02:21.8]} 29... Kd6 {[%clk 0:01:58.3]} 30. Nd3 {[%clk 0:02:15.7]} 30...
e5 {[%clk 0:01:55.4]} 31. e4 {[%clk 0:02:05.3]} 31... f4 {[%clk 0:01:53.6]} 32.
Kf1 {[%clk 0:02:04.2]} 32... Nb6 {[%clk 0:01:48.7]} 33. Ke2 {[%clk 0:02:00.3]}
33... Nc4 {[%clk 0:01:44.7]} 34. Kd1 {[%clk 0:01:51.8]} 34... Nb6 {[%clk
0:01:43.8]} 35. Kc2 {[%clk 0:01:51.1]} 35... Nc8 {[%clk 0:01:43.4]} 36. Kc3
{[%clk 0:01:50.4]} 36... Nb6 {[%clk 0:01:42.9]} 37. a3 {[%clk 0:01:48.2]} 37...
g5 {[%clk 0:01:42.3]} 38. h3 {[%clk 0:01:47.8]} 38... h5 {[%clk 0:01:41.8]} 39.
Nb2 {[%clk 0:01:48.1]} 39... Kc5 {[%clk 0:01:38.4]} 40. Nd3+ {[%clk 0:01:48.3]}
40... Kd6 {[%clk 0:01:38.4]} 41. f3 {[%clk 0:01:48.9]} 41... h4 {[%clk
0:01:36.1]} 42. Nc1 {[%clk 0:01:39.9]} 42... Na4+ {[%clk 0:01:32]} 43. Kc2
{[%clk 0:01:35.1]} 43... Nb6 {[%clk 0:01:12.6]} 44. Nb3 {[%clk 0:01:34.1]} 44...
Nc4 {[%clk 0:01:12.8]} 45. a4 {[%clk 0:01:28.2]} 45... Ne3+ {[%clk 0:01:10.4]}
46. Kd3 {[%clk 0:01:25.4]} 46... Nxg2 {[%clk 0:01:11.3]} 47. Nxa5 {[%clk
0:01:25.4]} 47... g4 {[%clk 0:01:04.4]} 48. fxg4 {[%clk 0:01:23.4]} 48... f3
{[%clk 0:01:04]} 49. Nc4+ {[%clk 0:01:23.5]} 49... Kc5 {[%clk 0:01:03.4]} 50.
Nxe5 {[%clk 0:01:14.1]} 50... f2 {[%clk 0:01:03.5]} 51. Ke2 {[%clk 0:01:14]}
51... Nf4+ {[%clk 0:01:02]} 52. Kxf2 {[%clk 0:01:13.2]} 52... Nxh3+ {[%clk
0:01:02.9]} 53. Ke3 {[%clk 0:01:07.3]} 53... Ng5 {[%clk 0:01:03.8]} 54. Nf3
{[%clk 0:01:03.6]} 54... Ne6 {[%clk 0:00:53.4]} 55. Nxh4 {[%clk 0:01:01.9]}
55... Kb4 {[%clk 0:00:51.3]} 56. b6 {[%clk 0:00:59.3]} 56... Nc5 {[%clk
0:00:50.8]} 57. b7 {[%clk 0:00:59]} 57... Nxb7 {[%clk 0:00:51.7]} 58. Bxb7
{[%clk 0:00:59]} 58... Kxa4 {[%clk 0:00:52.2]} 59. Kd4 {[%clk 0:00:58.6]} 59...
Kb4 {[%clk 0:00:53.1]} 60. Kd5 {[%clk 0:00:58.9]} 60... Kc3 {[%clk 0:00:53.2]}
61. Nf5 {[%clk 0:00:59.4]} 61... Kd3 {[%clk 0:00:54.1]} 62. Nd6 {[%clk
0:01:00.2]} 62... Ke3 {[%clk 0:00:54.4]} 63. Nc8 {[%clk 0:01:00.7]} 63... Kf4
{[%clk 0:00:55.3]} 64. Kc6 {[%clk 0:01:01.1]} 64... Kxg4 {[%clk 0:00:56.2]} 65.
Kc7 {[%clk 0:01:01.5]} 65... Kf4 {[%clk 0:00:57.1]} 66. e5 {[%clk 0:01:01.8]}
66... Kxe5 {[%clk 0:00:57.4]} 67. Bc6 {[%clk 0:01:02.1]} 67... Kd4 {[%clk
0:00:57.4]} 68. Kd6 {[%clk 0:01:02.6]} 68... Kc4 {[%clk 0:00:57.6]} 69. Ne7
{[%clk 0:01:03]} 69... Kd4 {[%clk 0:00:58.5]} 70. Bd5 {[%clk 0:01:03.3]} 70...
Kd3 {[%clk 0:00:58.9]} 71. Ke5 {[%clk 0:01:03.6]} 71... Ke3 {[%clk 0:00:59.8]}
72. Be4 {[%clk 0:01:03.3]} 72... Kd2 {[%clk 0:00:59.9]} 73. Nd5 {[%clk
0:01:03.8]} 73... Ke2 {[%clk 0:01:00.1]} 74. Kd4 {[%clk 0:01:03.4]} 74... Kd2
{[%clk 0:01:00.3]} 75. Bf3 {[%clk 0:01:03.1]} 75... Kc1 {[%clk 0:01:00.8]} 76.
Kc3 {[%clk 0:01:00.9]} 76... Kb1 {[%clk 0:00:59.9]} 77. Nb4 {[%clk 0:00:58.8]}
77... Ka1 {[%clk 0:00:59.9]} 78. Bd5 {[%clk 0:00:55.3]} 78... Kb1 {[%clk
0:01:00.1]} 79. Nc2 {[%clk 0:00:55.3]} 79... Kc1 {[%clk 0:00:59.7]} 80. Ba2
{[%clk 0:00:55.3]} 80... Kd1 {[%clk 0:00:59.6]} 81. Nd4 {[%clk 0:00:55.7]} 81...
Kc1 {[%clk 0:00:59.4]} 82. Ne2+ {[%clk 0:00:55.6]} 82... Kd1 {[%clk 0:00:59.5]}
83. Kd3 {[%clk 0:00:56.3]} 83... Ke1 {[%clk 0:00:59.5]} 84. Ke3 {[%clk
0:00:55.9]} 84... Kd1 {[%clk 0:00:59.6]} 85. Bb3+ {[%clk 0:00:56.2]} 85... Ke1
{[%clk 0:00:59.4]} 86. Nf4 {[%clk 0:00:56.5]} 86... Kf1 {[%clk 0:00:59.3]} 87.
Bc2 {[%clk 0:00:55]} 87... Ke1 {[%clk 0:00:59.2]} 88. Ng2+ {[%clk 0:00:55]}
88... Kf1 {[%clk 0:00:59.4]} 89. Kf3 {[%clk 0:00:55.4]} 89... Kg1 {[%clk
0:00:59.1]} 90. Kg3 {[%clk 0:00:55.6]} 90... Kf1 {[%clk 0:00:58.7]} 91. Bd3+
{[%clk 0:00:55.9]} 91... Kg1 {[%clk 0:00:58.6]} 92. Bc4 {[%clk 0:00:46.2]} 92...
Kh1 {[%clk 0:00:57.4]} 93. Nf4 {[%clk 0:00:46.4]} 93... Kg1 {[%clk 0:00:57.9]}
94. Nh3+ {[%clk 0:00:46.8]} 94... Kh1 {[%clk 0:00:58]} 95. Bd5# {[%clk
0:00:46.9]} 1-0

[Event "Late-Titled-Tuesday-Blitz-April-23-2024"]
[Site "Chess.com"]
[Date "2024.04.23"]
[Round "1"]
[White "Mikhail_Golubev"]
[Black "enriquebutti"]
[Result "1-0"]
[WhiteElo "2583"]
[BlackElo "2166"]
[TimeControl "180+1"]
[EndTime "14:07:53 PDT"]
[Termination "Mikhail_Golubev won by checkmate"]

1. e4 {[%clk 0:03:00.9]} 1... c5 {[%clk 0:02:58.8]} 2. Nf3 {[%clk 0:03:00.1]}
2... d6 {[%clk 0:02:57.8]} 3. d4 {[%clk 0:03:00]} 3... cxd4 {[%clk 0:02:57.6]}
4. Nxd4 {[%clk 0:03:00.6]} 4... Nf6 {[%clk 0:02:57.5]} 5. Nc3 {[%clk 0:03:00.7]}
5... a6 {[%clk 0:02:57.4]} 6. Bc4 {[%clk 0:03:00.4]} 6... e6 {[%clk 0:02:55.4]}
7. Bb3 {[%clk 0:03:00.5]} 7... Be7 {[%clk 0:02:51.8]} 8. f4 {[%clk 0:02:56]}
8... O-O {[%clk 0:02:49.5]} 9. Qf3 {[%clk 0:02:48.4]} 9... Nc6 {[%clk
0:02:48.8]} 10. Be3 {[%clk 0:02:47]} 10... Nxd4 {[%clk 0:02:42.4]} 11. Bxd4
{[%clk 0:02:46.3]} 11... Qa5 {[%clk 0:02:38.9]} 12. O-O {[%clk 0:02:33]} 12...
e5 {[%clk 0:02:34.9]} 13. Be3 {[%clk 0:02:12]} 13... Bd7 {[%clk 0:02:12.6]} 14.
f5 {[%clk 0:01:57]} 14... Bc6 {[%clk 0:02:06.6]} 15. Bg5 {[%clk 0:01:46.9]}
15... Rfe8 {[%clk 0:02:00.7]} 16. Bxf6 {[%clk 0:01:39.8]} 16... Bxf6 {[%clk
0:01:59.7]} 17. Rad1 {[%clk 0:01:40.1]} 17... Rad8 {[%clk 0:01:52.5]} 18. Qh5
{[%clk 0:01:31.8]} 18... Re7 {[%clk 0:01:51.3]} 19. Kh1 {[%clk 0:01:17]} 19...
Qc5 {[%clk 0:01:45]} 20. Nd5 {[%clk 0:01:08]} 20... Bxd5 {[%clk 0:01:43]} 21.
Rxd5 {[%clk 0:01:04]} 21... Qe3 {[%clk 0:01:40]} 22. Qg4 {[%clk 0:00:48.1]}
22... Qg5 {[%clk 0:01:30.3]} 23. Qe2 {[%clk 0:00:39.7]} 23... Rc7 {[%clk
0:01:24.7]} 24. Rfd1 {[%clk 0:00:35.8]} 24... Be7 {[%clk 0:01:23.5]} 25. g3
{[%clk 0:00:33.5]} 25... h5 {[%clk 0:01:19.4]} 26. R5d3 {[%clk 0:00:26.8]} 26...
h4 {[%clk 0:01:15.6]} 27. gxh4 {[%clk 0:00:25]} 27... Qxh4 {[%clk 0:01:15.2]}
28. Rg1 {[%clk 0:00:23.9]} 28... Bf6 {[%clk 0:01:12.1]} 29. Qg2 {[%clk
0:00:23.3]} 29... Qh6 {[%clk 0:01:07.4]} 30. Rh3 {[%clk 0:00:22.3]} 30... Qf4
{[%clk 0:01:04.3]} 31. Rf1 {[%clk 0:00:21.7]} 31... Qg5 {[%clk 0:01:00.7]} 32.
Qe2 {[%clk 0:00:20.9]} 32... Rc5 {[%clk 0:00:52.4]} 33. Rg1 {[%clk 0:00:19.6]}
33... Qf4 {[%clk 0:00:51.3]} 34. Rf1 {[%clk 0:00:18.6]} 34... Qg5 {[%clk
0:00:50.1]} 35. Rg3 {[%clk 0:00:11.6]} 35... Qh4 {[%clk 0:00:47]} 36. Rg4 {[%clk
0:00:10.5]} 36... Qh6 {[%clk 0:00:46.3]} 37. Rd1 {[%clk 0:00:10.2]} 37... Rc7
{[%clk 0:00:42.6]} 38. c3 {[%clk 0:00:10.1]} 38... Bg5 {[%clk 0:00:39.5]} 39.
Rdg1 {[%clk 0:00:08.9]} 39... Bf6 {[%clk 0:00:38.7]} 40. Qf3 {[%clk 0:00:08.2]}
40... Rcd7 {[%clk 0:00:33.4]} 41. R4g3 {[%clk 0:00:07.7]} 41... Kf8 {[%clk
0:00:30.5]} 42. Rh3 {[%clk 0:00:07.4]} 42... Qd2 {[%clk 0:00:29.9]} 43. Rhg3
{[%clk 0:00:02.7]} 43... Qxb2 {[%clk 0:00:27.6]} 44. Qh5 {[%clk 0:00:02.8]}
44... Rc8 {[%clk 0:00:24.5]} 45. Rd3 {[%clk 0:00:02.6]} 45... Rxc3 {[%clk
0:00:22.1]} 46. Rxd6 {[%clk 0:00:02.6]} 46... Rdc7 {[%clk 0:00:20.4]} 47. Rd5
{[%clk 0:00:01.5]} 47... Rc1 {[%clk 0:00:19.6]} 48. Rdd1 {[%clk 0:00:02]} 48...
Rxd1 {[%clk 0:00:19.2]} 49. Rxd1 {[%clk 0:00:02.6]} 49... Rc1 {[%clk 0:00:18.9]}
50. Qh8+ {[%clk 0:00:02.8]} 50... Ke7 {[%clk 0:00:18.1]} 51. Qd8# {[%clk
0:00:03.7]} 1-0

[Event "Late-Titled-Tuesday-Blitz-April-23-2024"]
[Site "Chess.com"]
[Date "2024.04.23"]
[Round "1"]
[White "DominguezOnYoutube"]
[Black "Slovak_fighter2000"]
[Result "1/2-1/2"]
[WhiteElo "2957"]
[BlackElo "2529"]
[TimeControl "180+1"]
[EndTime "14:07:54 PDT"]
[Termination "Game drawn - insufficient material"]

1. e4 {[%clk 0:03:00.9]} 1... e6 {[%clk 0:02:59.6]} 2. d4 {[%clk 0:03:00.5]}
2... d5 {[%clk 0:03:00]} 3. Nc3 {[%clk 0:03:00.7]} 3... Nf6 {[%clk 0:02:59.8]}
4. e5 {[%clk 0:03:00.8]} 4... Nfd7 {[%clk 0:02:59.9]} 5. f4 {[%clk 0:03:00.9]}
5... c5 {[%clk 0:03:00.3]} 6. Nf3 {[%clk 0:03:01.4]} 6... Nc6 {[%clk 0:03:00.6]}
7. Be3 {[%clk 0:03:01.9]} 7... Be7 {[%clk 0:03:01.1]} 8. Qd2 {[%clk 0:03:01]}
8... O-O {[%clk 0:03:01.2]} 9. Be2 {[%clk 0:02:59.8]} 9... b6 {[%clk 0:03:00.6]}
10. Nd1 {[%clk 0:02:55.2]} 10... f5 {[%clk 0:02:58.8]} 11. c3 {[%clk 0:02:53.8]}
11... a5 {[%clk 0:02:55.2]} 12. O-O {[%clk 0:02:45.2]} 12... Ba6 {[%clk
0:02:51.4]} 13. Bxa6 {[%clk 0:02:44.9]} 13... Rxa6 {[%clk 0:02:52.3]} 14. c4
{[%clk 0:02:18.9]} 14... cxd4 {[%clk 0:02:33.8]} 15. Nxd4 {[%clk 0:02:17]} 15...
Nxd4 {[%clk 0:02:33.5]} 16. cxd5 {[%clk 0:02:11.5]} 16... exd5 {[%clk
0:01:59.9]} 17. Bxd4 {[%clk 0:02:06.5]} 17... Nc5 {[%clk 0:01:55.4]} 18. Ne3
{[%clk 0:02:01.7]} 18... Ne4 {[%clk 0:01:52.9]} 19. Qd3 {[%clk 0:02:01.4]} 19...
Ra8 {[%clk 0:01:50.6]} 20. Rac1 {[%clk 0:01:51.5]} 20... Rb8 {[%clk 0:01:39.5]}
21. Rc6 {[%clk 0:01:49.5]} 21... Bc5 {[%clk 0:01:33.8]} 22. b3 {[%clk
0:01:26.7]} 22... Qd7 {[%clk 0:01:29.2]} 23. Bxc5 {[%clk 0:01:25.3]} 23... Qxc6
{[%clk 0:01:12.4]} 24. Bxf8 {[%clk 0:01:24.9]} 24... Rxf8 {[%clk 0:01:13.3]} 25.
Qxd5+ {[%clk 0:01:23]} 25... Qxd5 {[%clk 0:01:13.8]} 26. Nxd5 {[%clk 0:01:23.9]}
26... Rd8 {[%clk 0:01:10.1]} 27. Ne7+ {[%clk 0:01:11.2]} 27... Kf7 {[%clk
0:01:10]} 28. Nxf5 {[%clk 0:01:10.9]} 28... Rd2 {[%clk 0:01:10.1]} 29. Re1
{[%clk 0:01:11.3]} 29... Nc5 {[%clk 0:01:07.9]} 30. Nd6+ {[%clk 0:01:10.3]}
30... Ke7 {[%clk 0:01:04.6]} 31. a4 {[%clk 0:00:45.5]} 31... Nxb3 {[%clk
0:00:59]} 32. Rb1 {[%clk 0:00:40.5]} 32... Nd4 {[%clk 0:00:52.2]} 33. Kf1 {[%clk
0:00:31.7]} 33... Ne2 {[%clk 0:00:42.9]} 34. g3 {[%clk 0:00:23.5]} 34... Nc3
{[%clk 0:00:34.6]} 35. Rxb6 {[%clk 0:00:22.6]} 35... Rxh2 {[%clk 0:00:30.8]} 36.
f5 {[%clk 0:00:20.5]} 36... Kd7 {[%clk 0:00:27.4]} 37. e6+ {[%clk 0:00:18.7]}
37... Kc7 {[%clk 0:00:26.9]} 38. e7 {[%clk 0:00:18.2]} 38... Re2 {[%clk
0:00:25.4]} 39. e8=Q {[%clk 0:00:13]} 39... Rxe8 {[%clk 0:00:24.9]} 40. Nxe8+
{[%clk 0:00:13.7]} 40... Kxb6 {[%clk 0:00:25.2]} 41. Nxg7 {[%clk 0:00:14.4]}
41... Nxa4 {[%clk 0:00:24.7]} 42. Ne6 {[%clk 0:00:11.7]} 42... Nc5 {[%clk
0:00:15]} 43. Nd4 {[%clk 0:00:11.6]} 43... Nd7 {[%clk 0:00:14.6]} 44. Ke2 {[%clk
0:00:09.8]} 44... a4 {[%clk 0:00:14.5]} 45. Kd3 {[%clk 0:00:09.6]} 45... Kc5
{[%clk 0:00:14.3]} 46. Ne6+ {[%clk 0:00:09.2]} 46... Kd5 {[%clk 0:00:13.2]} 47.
Ng5 {[%clk 0:00:07.1]} 47... Ke5 {[%clk 0:00:12.3]} 48. Nxh7 {[%clk 0:00:06.8]}
48... Kxf5 {[%clk 0:00:12.6]} 49. Kc3 {[%clk 0:00:07.2]} 49... Kg4 {[%clk
0:00:12.9]} 50. Kb4 {[%clk 0:00:06.7]} 50... Kxg3 {[%clk 0:00:13.4]} 51. Kxa4
{[%clk 0:00:06.5]} 1/2-1/2

[Event "Late-Titled-Tuesday-Blitz-April-23-2024"]
[Site "Chess.com"]
[Date "2024.04.23"]
[Round "1"]
[White "sergiochess83"]
[Black "ACollins05"]
[Result "0-1"]
[WhiteElo "2946"]
[BlackElo "2533"]
[TimeControl "180+1"]
[EndTime "14:07:54 PDT"]
[Termination "ACollins05 won by resignation"]

1. d4 {[%clk 0:03:00.9]} 1... b5 {[%clk 0:02:59.7]} 2. e4 {[%clk 0:02:57.1]}
2... a6 {[%clk 0:02:59.6]} 3. Bd3 {[%clk 0:02:55]} 3... Bb7 {[%clk 0:02:59.6]}
4. Nf3 {[%clk 0:02:54.8]} 4... e6 {[%clk 0:03:00.1]} 5. O-O {[%clk 0:02:51.8]}
5... c5 {[%clk 0:03:00.2]} 6. c3 {[%clk 0:02:49.4]} 6... Nf6 {[%clk 0:02:59.1]}
7. Re1 {[%clk 0:02:49.5]} 7... Be7 {[%clk 0:02:58.8]} 8. e5 {[%clk 0:02:27.6]}
8... Nd5 {[%clk 0:02:58.4]} 9. dxc5 {[%clk 0:02:26.5]} 9... Bxc5 {[%clk
0:02:56.9]} 10. Nbd2 {[%clk 0:02:26.8]} 10... h6 {[%clk 0:02:54.4]} 11. Ne4
{[%clk 0:02:26.5]} 11... Be7 {[%clk 0:02:54.4]} 12. Ng3 {[%clk 0:02:25.8]} 12...
g6 {[%clk 0:02:44.6]} 13. Be4 {[%clk 0:02:21.6]} 13... d6 {[%clk 0:02:36]} 14.
Qc2 {[%clk 0:01:44.1]} 14... Nc6 {[%clk 0:02:03.3]} 15. Bxd5 {[%clk 0:01:41.1]}
15... exd5 {[%clk 0:02:04.2]} 16. Bf4 {[%clk 0:01:37.6]} 16... dxe5 {[%clk
0:01:59.2]} 17. Nxe5 {[%clk 0:01:38.5]} 17... Nxe5 {[%clk 0:01:58.6]} 18. Bxe5
{[%clk 0:01:38.3]} 18... O-O {[%clk 0:01:58.4]} 19. Re2 {[%clk 0:01:36.7]} 19...
Bf6 {[%clk 0:01:58.2]} 20. Qd2 {[%clk 0:01:34.7]} 20... Kg7 {[%clk 0:01:52.6]}
21. Rae1 {[%clk 0:01:33.9]} 21... Bxe5 {[%clk 0:01:42.9]} 22. Rxe5 {[%clk
0:01:33.6]} 22... d4 {[%clk 0:01:42.7]} 23. cxd4 {[%clk 0:01:30.3]} 23... Qd6
{[%clk 0:01:39]} 24. Re7 {[%clk 0:01:17.3]} 24... Qd5 {[%clk 0:01:33.6]} 25. f3
{[%clk 0:01:12.1]} 25... Rad8 {[%clk 0:01:33.4]} 26. R1e5 {[%clk 0:00:54.1]}
26... Qc6 {[%clk 0:01:27.8]} 27. Ne4 {[%clk 0:00:52]} 27... Rfe8 {[%clk
0:01:14.9]} 28. Rxe8 {[%clk 0:00:47.1]} 28... Rxe8 {[%clk 0:01:15.8]} 29. Rxe8
{[%clk 0:00:47.4]} 29... Qxe8 {[%clk 0:01:15.4]} 30. Nd6 {[%clk 0:00:47.7]}
30... Qc6 {[%clk 0:01:11.1]} 31. Nxb7 {[%clk 0:00:47.2]} 31... Qxb7 {[%clk
0:01:12]} 32. d5 {[%clk 0:00:47.8]} 32... Qb6+ {[%clk 0:01:11.6]} 33. Kf1 {[%clk
0:00:47.8]} 33... Qd6 {[%clk 0:01:10]} 34. Qd4+ {[%clk 0:00:47.2]} 34... Qf6
{[%clk 0:01:02.2]} 35. Qd2 {[%clk 0:00:39]} 35... Qd6 {[%clk 0:00:58.3]} 36. h3
{[%clk 0:00:39.1]} 36... Kf6 {[%clk 0:00:57.7]} 37. Qxh6 {[%clk 0:00:22.9]}
37... Qxd5 {[%clk 0:00:48.2]} 38. Qf4+ {[%clk 0:00:22]} 38... Kg7 {[%clk
0:00:46.9]} 39. a3 {[%clk 0:00:19.9]} 39... Qd1+ {[%clk 0:00:46.1]} 40. Kf2
{[%clk 0:00:18.5]} 40... Qc2+ {[%clk 0:00:46.1]} 41. Kg3 {[%clk 0:00:19]} 41...
Qxb2 {[%clk 0:00:46.2]} 42. Qd6 {[%clk 0:00:19.2]} 42... Qf6 {[%clk 0:00:42.8]}
43. Qc7 {[%clk 0:00:17.4]} 43... Qb2 {[%clk 0:00:36.7]} 44. Qd6 {[%clk
0:00:16.2]} 44... a5 {[%clk 0:00:32.5]} 45. h4 {[%clk 0:00:15.1]} 45... b4
{[%clk 0:00:32.3]} 46. axb4 {[%clk 0:00:15.3]} 46... axb4 {[%clk 0:00:32]} 47.
h5 {[%clk 0:00:16]} 47... gxh5 {[%clk 0:00:31.2]} 48. Qc5 {[%clk 0:00:15.7]}
48... Kg6 {[%clk 0:00:22.4]} 49. Qc6+ {[%clk 0:00:14.6]} 49... Kh7 {[%clk
0:00:15.9]} 50. Qe4+ {[%clk 0:00:13.1]} 50... Kg7 {[%clk 0:00:15.9]} 51. Qd5
{[%clk 0:00:07.2]} 51... b3 {[%clk 0:00:14.2]} 52. Qg5+ {[%clk 0:00:07.1]} 52...
Kh7 {[%clk 0:00:13]} 53. Qxh5+ {[%clk 0:00:07.3]} 53... Kg8 {[%clk 0:00:13.6]}
54. Kh2 {[%clk 0:00:04.2]} 54... Qh8 {[%clk 0:00:13.6]} 0-1

[Event "Late-Titled-Tuesday-Blitz-April-23-2024"]
[Site "Chess.com"]
[Date "2024.04.23"]
[Round "1"]
[White "Naruna_Chan"]
[Black "Aygehovit1992"]
[Result "1-0"]
[WhiteElo "2456"]
[BlackElo "2719"]
[TimeControl "180+1"]
[EndTime "14:07:58 PDT"]
[Termination "Naruna_Chan won on time"]

1. e4 {[%clk 0:03:00.9]} 1... c5 {[%clk 0:02:57.5]} 2. c3 {[%clk 0:03:00]} 2...
d5 {[%clk 0:02:57.1]} 3. exd5 {[%clk 0:03:00.9]} 3... Qxd5 {[%clk 0:02:57.8]} 4.
d4 {[%clk 0:03:01.1]} 4... Nf6 {[%clk 0:02:57.6]} 5. Nf3 {[%clk 0:03:00.8]} 5...
e6 {[%clk 0:02:56.4]} 6. Be3 {[%clk 0:03:00.3]} 6... cxd4 {[%clk 0:02:49.7]} 7.
cxd4 {[%clk 0:03:00.4]} 7... Nc6 {[%clk 0:02:49.5]} 8. Nc3 {[%clk 0:02:59.9]}
8... Qd8 {[%clk 0:02:47.5]} 9. Bd3 {[%clk 0:02:55.9]} 9... Be7 {[%clk
0:02:46.5]} 10. O-O {[%clk 0:02:55.5]} 10... O-O {[%clk 0:02:46.2]} 11. Rc1
{[%clk 0:02:53.8]} 11... b6 {[%clk 0:02:46]} 12. Bb1 {[%clk 0:02:53.6]} 12...
Bb7 {[%clk 0:02:45.7]} 13. Ne5 {[%clk 0:02:48.3]} 13... Rc8 {[%clk 0:02:41.2]}
14. Qf3 {[%clk 0:02:28.3]} 14... Nxe5 {[%clk 0:02:27.2]} 15. Qxb7 {[%clk
0:02:27.3]} 15... Rc7 {[%clk 0:02:27.5]} 16. Qa6 {[%clk 0:02:23.4]} 16... Neg4
{[%clk 0:02:27.4]} 17. Qe2 {[%clk 0:02:06.6]} 17... Qd6 {[%clk 0:02:16.4]} 18.
g3 {[%clk 0:02:05.6]} 18... Nxe3 {[%clk 0:02:16.7]} 19. fxe3 {[%clk 0:01:57]}
19... Qd7 {[%clk 0:01:51.6]} 20. Rcd1 {[%clk 0:01:40.5]} 20... Bb4 {[%clk
0:01:33.6]} 21. Qd3 {[%clk 0:01:31.4]} 21... Rfc8 {[%clk 0:01:13]} 22. Rxf6
{[%clk 0:01:00.8]} 22... gxf6 {[%clk 0:01:13.9]} 23. Qxh7+ {[%clk 0:00:55]}
23... Kf8 {[%clk 0:01:14.3]} 24. Ne4 {[%clk 0:00:43.9]} 24... Ke7 {[%clk
0:00:59.2]} 25. Qh4 {[%clk 0:00:43.1]} 25... Qa4 {[%clk 0:00:29.7]} 26. Qxf6+
{[%clk 0:00:40.1]} 26... Ke8 {[%clk 0:00:29.6]} 27. Rf1 {[%clk 0:00:37.7]} 27...
Bf8 {[%clk 0:00:25.7]} 28. Ng5 {[%clk 0:00:34.8]} 28... Qd7 {[%clk 0:00:21.7]}
29. Bg6 {[%clk 0:00:23.4]} 29... Qe7 {[%clk 0:00:09.6]} 30. Bxf7+ {[%clk
0:00:21.8]} 30... Kd7 {[%clk 0:00:09.2]} 31. Bxe6+ {[%clk 0:00:21.2]} 31... Ke8
{[%clk 0:00:05.9]} 32. Bxc8 {[%clk 0:00:20.8]} 32... Qxf6 {[%clk 0:00:05.9]} 33.
Rxf6 {[%clk 0:00:20.1]} 33... Rxc8 {[%clk 0:00:06.5]} 34. Rf2 {[%clk 0:00:16.9]}
34... Bh6 {[%clk 0:00:05.8]} 35. h4 {[%clk 0:00:16.4]} 35... Rc1+ {[%clk
0:00:06.5]} 36. Kg2 {[%clk 0:00:16.4]} 36... Ra1 {[%clk 0:00:07.4]} 37. a3
{[%clk 0:00:16.5]} 37... b5 {[%clk 0:00:07.8]} 38. Re2 {[%clk 0:00:16.2]} 38...
a5 {[%clk 0:00:07.4]} 39. e4 {[%clk 0:00:16.4]} 39... Rd1 {[%clk 0:00:05.9]} 40.
d5 {[%clk 0:00:16.7]} 40... b4 {[%clk 0:00:06.2]} 41. axb4 {[%clk 0:00:16.5]}
41... axb4 {[%clk 0:00:07.1]} 42. Ne6 {[%clk 0:00:15.4]} 42... b3 {[%clk
0:00:06.4]} 43. Nc5 {[%clk 0:00:15]} 43... Rb1 {[%clk 0:00:02.5]} 44. Nxb3
{[%clk 0:00:15.1]} 44... Bg7 {[%clk 0:00:02.5]} 45. Nc5 {[%clk 0:00:14.5]} 45...
Bxb2 {[%clk 0:00:01.9]} 46. e5 {[%clk 0:00:13.1]} 46... Bd4 {[%clk 0:00:02.8]}
47. Ne6 {[%clk 0:00:12.4]} 47... Bb6 {[%clk 0:00:03]} 48. d6 {[%clk 0:00:11.8]}
48... Rg1+ {[%clk 0:00:01.3]} 49. Kh3 {[%clk 0:00:11.3]} 49... Rh1+ {[%clk
0:00:02.1]} 50. Kg4 {[%clk 0:00:11.5]} 50... Rd1 {[%clk 0:00:03]} 51. Ng7+
{[%clk 0:00:11]} 51... Kf7 {[%clk 0:00:03.5]} 52. e6+ {[%clk 0:00:10.4]} 52...
Kxg7 {[%clk 0:00:02.1]} 53. e7 {[%clk 0:00:10.8]} 1-0